[Event "*** SCC Grand Prix: Titled Tuesday Blitz"]
[Site "Chess.com"]
[Date "2020.08.11"]
[Round "3"]
[White "anskam"]
[Black "GiantThresher"]
[Result "0-1"]
[WhiteElo "1537"]
[BlackElo "2720"]
[TimeControl "180+1"]
[EndTime "10:29:06 PDT"]
[Termination "GiantThresher won by checkmate"]

1. e4 {[%clk 0:03:00.9]} 1... e6 {[%clk 0:02:46.5]} 2. d4 {[%clk 0:02:58.7]}
2... d5 {[%clk 0:02:42.8]} 3. Nc3 {[%clk 0:02:57.6]} 3... Bb4 {[%clk 0:02:35.7]}
4. e5 {[%clk 0:02:56.7]} 4... c5 {[%clk 0:02:35.3]} 5. a3 {[%clk 0:02:56.2]}
5... Bxc3+ {[%clk 0:02:35.5]} 6. bxc3 {[%clk 0:02:55.5]} 6... Ne7 {[%clk
0:02:35.5]} 7. f4 {[%clk 0:02:53.9]} 7... Qc7 {[%clk 0:02:29.7]} 8. Bd2 {[%clk
0:02:52.8]} 8... b6 {[%clk 0:02:17.1]} 9. Qg4 {[%clk 0:02:50.7]} 9... O-O {[%clk
0:02:10.2]} 10. Bd3 {[%clk 0:02:44.9]} 10... Ba6 {[%clk 0:02:09.6]} 11. Nh3
{[%clk 0:02:41.8]} 11... Bxd3 {[%clk 0:02:09]} 12. cxd3 {[%clk 0:02:40.7]} 12...
cxd4 {[%clk 0:02:06.3]} 13. cxd4 {[%clk 0:02:38.7]} 13... Nf5 {[%clk 0:02:05.8]}
14. O-O {[%clk 0:02:29.3]} 14... Nc6 {[%clk 0:02:03.9]} 15. Ng5 {[%clk 0:02:23]}
15... Ncxd4 {[%clk 0:01:58.6]} 16. Rfc1 {[%clk 0:02:20.1]} 16... Qe7 {[%clk
0:01:58.4]} 17. h4 {[%clk 0:02:08.6]} 17... Rfc8 {[%clk 0:01:53.7]} 18. h5
{[%clk 0:01:55.7]} 18... h6 {[%clk 0:01:51]} 19. Nf3 {[%clk 0:01:48.7]} 19...
Ne2+ {[%clk 0:01:49.1]} 20. Kh2 {[%clk 0:01:41.5]} 20... Nxc1 {[%clk 0:01:50]}
21. Rxc1 {[%clk 0:01:39.2]} 21... Qxa3 {[%clk 0:01:48.7]} 22. Rxc8+ {[%clk
0:01:33.3]} 22... Rxc8 {[%clk 0:01:49.6]} 23. Nh4 {[%clk 0:01:26.3]} 23... Qxd3
{[%clk 0:01:48.5]} 24. Bb4 {[%clk 0:01:19.6]} 24... Rc4 {[%clk 0:01:43.5]} 25.
Bd6 {[%clk 0:01:15.4]} 25... b5 {[%clk 0:01:36]} 26. Nf3 {[%clk 0:01:08.5]}
26... Qe4 {[%clk 0:01:32.5]} 27. Nd2 {[%clk 0:00:54.9]} 27... Qxf4+ {[%clk
0:01:31.5]} 28. Qxf4 {[%clk 0:00:54.2]} 28... Rxf4 {[%clk 0:01:32.4]} 29. Nb3
{[%clk 0:00:50.1]} 29... Rh4+ {[%clk 0:01:26]} 30. Kg1 {[%clk 0:00:48.8]} 30...
Rxh5 {[%clk 0:01:26.9]} 31. Nc5 {[%clk 0:00:46.8]} 31... b4 {[%clk 0:01:24.2]}
32. Kf2 {[%clk 0:00:45.2]} 32... Rh4 {[%clk 0:01:23.5]} 33. Kf3 {[%clk
0:00:42.5]} 33... Rc4 {[%clk 0:01:23]} 34. g4 {[%clk 0:00:36.3]} 34... Nd4+
{[%clk 0:01:14.2]} 35. Ke3 {[%clk 0:00:33.3]} 35... b3 {[%clk 0:01:15.1]} 36.
Na4 {[%clk 0:00:25.6]} 36... Rxa4 {[%clk 0:01:14.6]} 37. Kd3 {[%clk 0:00:21.1]}
37... b2 {[%clk 0:01:14.5]} 38. Kd2 {[%clk 0:00:18.3]} 38... b1=Q {[%clk
0:01:15.4]} 39. g5 {[%clk 0:00:15.7]} 39... Ra2+ {[%clk 0:01:16.3]} 40. Kc3
{[%clk 0:00:14]} 40... Qb3+ {[%clk 0:01:15.8]} 41. Kxd4 {[%clk 0:00:05.9]} 41...
Qc4+ {[%clk 0:01:16.7]} 42. Ke3 {[%clk 0:00:04.2]} 42... Re2+ {[%clk 0:01:17.6]}
43. Kf3 {[%clk 0:00:03.1]} 43... Qe4+ {[%clk 0:01:18.5]} 44. Kg3 {[%clk
0:00:02.3]} 44... Rg2+ {[%clk 0:01:19.4]} 45. Kh3 {[%clk 0:00:01.3]} 45... Qg4#
{[%clk 0:01:20.3]} 0-1

[Event "*** SCC Grand Prix: Titled Tuesday Blitz"]
[Site "Chess.com"]
[Date "2020.08.11"]
[Round "3"]
[White "politeplayer"]
[Black "Parhamov"]
[Result "0-1"]
[WhiteElo "2222"]
[BlackElo "3066"]
[TimeControl "180+1"]
[EndTime "10:29:06 PDT"]
[Termination "Parhamov won on time"]

1. e4 {[%clk 0:03:00.9]} 1... c5 {[%clk 0:02:58.4]} 2. Nf3 {[%clk 0:02:58]} 2...
Nc6 {[%clk 0:02:54.1]} 3. d4 {[%clk 0:02:57.6]} 3... cxd4 {[%clk 0:02:53.1]} 4.
Nxd4 {[%clk 0:02:57.7]} 4... e5 {[%clk 0:02:52.5]} 5. Nb5 {[%clk 0:02:57]} 5...
d6 {[%clk 0:02:49.5]} 6. N1c3 {[%clk 0:02:54.9]} 6... a6 {[%clk 0:02:41.2]} 7.
Na3 {[%clk 0:02:54.1]} 7... Be6 {[%clk 0:02:38]} 8. Nc4 {[%clk 0:02:48.9]} 8...
Rb8 {[%clk 0:02:36.5]} 9. Ne3 {[%clk 0:02:44.7]} 9... Nf6 {[%clk 0:02:33]} 10.
Bd3 {[%clk 0:02:38.4]} 10... Be7 {[%clk 0:02:30.4]} 11. O-O {[%clk 0:02:37.5]}
11... O-O {[%clk 0:02:27.1]} 12. Ncd5 {[%clk 0:02:35.2]} 12... Nd7 {[%clk
0:02:22.5]} 13. Nxe7+ {[%clk 0:02:30.1]} 13... Qxe7 {[%clk 0:02:18.9]} 14. Nd5
{[%clk 0:02:27.6]} 14... Bxd5 {[%clk 0:02:18.4]} 15. exd5 {[%clk 0:02:27.6]}
15... Nb4 {[%clk 0:02:17.2]} 16. Be2 {[%clk 0:01:57]} 16... Nf6 {[%clk
0:02:16.7]} 17. Bg5 {[%clk 0:01:47.5]} 17... h6 {[%clk 0:02:14.7]} 18. Bxf6
{[%clk 0:01:45.2]} 18... Qxf6 {[%clk 0:02:14]} 19. c3 {[%clk 0:01:32.3]} 19...
e4 {[%clk 0:02:10.7]} 20. cxb4 {[%clk 0:01:30.2]} 20... Qxb2 {[%clk 0:02:10.3]}
21. Rb1 {[%clk 0:01:15.8]} 21... Qxa2 {[%clk 0:02:08]} 22. b5 {[%clk 0:01:12.9]}
22... Rbc8 {[%clk 0:02:04]} 23. bxa6 {[%clk 0:01:08.8]} 23... bxa6 {[%clk
0:02:03]} 24. Ra1 {[%clk 0:01:05.8]} 24... Qb2 {[%clk 0:01:59.4]} 25. Bxa6
{[%clk 0:01:03.7]} 25... Rc2 {[%clk 0:01:59.1]} 26. Rb1 {[%clk 0:00:52.3]} 26...
Qa2 {[%clk 0:01:57.4]} 27. Ra1 {[%clk 0:00:48.1]} 27... Qb2 {[%clk 0:01:57.1]}
28. Rb1 {[%clk 0:00:39.5]} 28... Qa2 {[%clk 0:01:57]} 29. Ra1 {[%clk 0:00:39.7]}
29... Qb3 {[%clk 0:01:45.3]} 30. Rb1 {[%clk 0:00:38.1]} 30... Qc3 {[%clk
0:01:43.6]} 31. Bb7 {[%clk 0:00:32.8]} 31... Rb8 {[%clk 0:01:41.5]} 32. Bc6
{[%clk 0:00:30.9]} 32... Rxb1 {[%clk 0:01:39.6]} 33. Qxb1 {[%clk 0:00:30.2]}
33... e3 {[%clk 0:01:39.7]} 34. fxe3 {[%clk 0:00:24]} 34... Qd2 {[%clk
0:01:39.6]} 35. Qxc2 {[%clk 0:00:08.7]} 35... Qxc2 {[%clk 0:01:39.7]} 36. h3
{[%clk 0:00:07.7]} 36... Qe2 {[%clk 0:01:38.2]} 37. Rf3 {[%clk 0:00:07.3]} 37...
g6 {[%clk 0:01:38.3]} 38. Kh2 {[%clk 0:00:07.2]} 38... f5 {[%clk 0:01:38.2]} 39.
Kh1 {[%clk 0:00:06.5]} 39... Kg7 {[%clk 0:01:38.5]} 40. Kh2 {[%clk 0:00:06.3]}
40... Kf6 {[%clk 0:01:39]} 41. Bd7 {[%clk 0:00:06]} 41... Ke5 {[%clk 0:01:39.3]}
42. Be6 {[%clk 0:00:06.1]} 42... h5 {[%clk 0:01:30.1]} 43. Rg3 {[%clk
0:00:06.2]} 43... Kf6 {[%clk 0:01:29.6]} 44. h4 {[%clk 0:00:06.1]} 44... Qe1
{[%clk 0:01:29.6]} 45. Bg8 {[%clk 0:00:03.3]} 45... Qb4 {[%clk 0:01:27.3]} 46.
Kh3 {[%clk 0:00:01.7]} 46... Kg7 {[%clk 0:01:15.8]} 0-1

[Event "*** SCC Grand Prix: Titled Tuesday Blitz"]
[Site "Chess.com"]
[Date "2020.08.11"]
[Round "3"]
[White "m_ezat"]
[Black "ketster"]
[Result "1-0"]
[WhiteElo "2594"]
[BlackElo "2381"]
[TimeControl "180+1"]
[EndTime "10:29:06 PDT"]
[Termination "m_ezat won by resignation"]

1. d4 {[%clk 0:03:00.9]} 1... Nf6 {[%clk 0:02:59.3]} 2. c4 {[%clk 0:03:01.3]}
2... e6 {[%clk 0:02:58.3]} 3. Nc3 {[%clk 0:03:01.5]} 3... Bb4 {[%clk 0:02:57.5]}
4. e3 {[%clk 0:03:01]} 4... O-O {[%clk 0:02:56.4]} 5. a3 {[%clk 0:03:00.2]} 5...
Bxc3+ {[%clk 0:02:47.1]} 6. bxc3 {[%clk 0:02:58.2]} 6... c5 {[%clk 0:02:40.8]}
7. Bd3 {[%clk 0:02:57.4]} 7... Nc6 {[%clk 0:02:29.2]} 8. Ne2 {[%clk 0:02:56.5]}
8... b6 {[%clk 0:02:28.2]} 9. O-O {[%clk 0:02:56.5]} 9... Ba6 {[%clk 0:02:25]}
10. e4 {[%clk 0:02:56.7]} 10... Ne8 {[%clk 0:02:24.7]} 11. Ng3 {[%clk
0:02:55.9]} 11... Na5 {[%clk 0:02:22.6]} 12. f4 {[%clk 0:02:55.5]} 12... Bxc4
{[%clk 0:02:07.5]} 13. Bxc4 {[%clk 0:02:48.5]} 13... Nxc4 {[%clk 0:02:08.4]} 14.
f5 {[%clk 0:02:49.1]} 14... d5 {[%clk 0:01:28.5]} 15. f6 {[%clk 0:02:47.9]}
15... gxf6 {[%clk 0:00:54.4]} 16. Bh6 {[%clk 0:02:36.5]} 16... Qe7 {[%clk
0:00:34.1]} 17. exd5 {[%clk 0:01:47.2]} 17... Kh8 {[%clk 0:00:25.4]} 18. Bxf8
{[%clk 0:01:40.4]} 18... Qxf8 {[%clk 0:00:26.3]} 19. dxe6 {[%clk 0:01:32.8]}
19... fxe6 {[%clk 0:00:27.2]} 20. Qe2 {[%clk 0:01:32]} 20... Ned6 {[%clk
0:00:12.7]} 21. Qxe6 {[%clk 0:01:18.7]} 21... Re8 {[%clk 0:00:12.9]} 22. Qxf6+
{[%clk 0:01:12.4]} 22... Qxf6 {[%clk 0:00:13.2]} 23. Rxf6 {[%clk 0:01:12.6]}
23... Re3 {[%clk 0:00:13.9]} 24. dxc5 {[%clk 0:01:07.7]} 24... bxc5 {[%clk
0:00:13.2]} 25. Raf1 {[%clk 0:01:05]} 25... Ne4 {[%clk 0:00:03.7]} 26. Rf8+
{[%clk 0:00:51.6]} 26... Kg7 {[%clk 0:00:03.9]} 27. Nf5+ {[%clk 0:00:51.9]}
27... Kg6 {[%clk 0:00:04]} 28. Rg8+ {[%clk 0:00:46.3]} 28... Kf7 {[%clk
0:00:03.8]} 29. Nxe3+ {[%clk 0:00:46.1]} 29... Kxg8 {[%clk 0:00:04.3]} 30. Nxc4
{[%clk 0:00:46.2]} 30... Nxc3 {[%clk 0:00:05.2]} 31. Ne5 {[%clk 0:00:41.9]}
31... Ne2+ {[%clk 0:00:04.9]} 32. Kf2 {[%clk 0:00:40.9]} 32... Nd4 {[%clk
0:00:05.8]} 33. Rc1 {[%clk 0:00:40.6]} 33... Nb3 {[%clk 0:00:05.6]} 34. Rc3
{[%clk 0:00:40.7]} 34... Nd4 {[%clk 0:00:02.6]} 35. Rxc5 {[%clk 0:00:40.2]} 1-0

[Event "*** SCC Grand Prix: Titled Tuesday Blitz"]
[Site "Chess.com"]
[Date "2020.08.11"]
[Round "3"]
[White "Panterov"]
[Black "Lupul_Cenusiu"]
[Result "0-1"]
[WhiteElo "2211"]
[BlackElo "2504"]
[TimeControl "180+1"]
[EndTime "10:29:06 PDT"]
[Termination "Lupul_Cenusiu won by resignation"]

1. e4 {[%clk 0:03:00.9]} 1... c5 {[%clk 0:02:58.5]} 2. b3 {[%clk 0:02:59.8]}
2... a6 {[%clk 0:02:57.3]} 3. Bb2 {[%clk 0:02:59.6]} 3... Nc6 {[%clk 0:02:57.9]}
4. g3 {[%clk 0:02:58.3]} 4... Nf6 {[%clk 0:02:56.5]} 5. Bg2 {[%clk 0:02:58.3]}
5... e5 {[%clk 0:02:56]} 6. Ne2 {[%clk 0:02:58.1]} 6... d6 {[%clk 0:02:56.3]} 7.
O-O {[%clk 0:02:57.9]} 7... Be7 {[%clk 0:02:56.4]} 8. f4 {[%clk 0:02:57.9]} 8...
O-O {[%clk 0:02:56]} 9. f5 {[%clk 0:02:58]} 9... d5 {[%clk 0:02:55.4]} 10. exd5
{[%clk 0:02:52.5]} 10... Nxd5 {[%clk 0:02:54.9]} 11. Nbc3 {[%clk 0:02:52.7]}
11... Nf6 {[%clk 0:02:50.2]} 12. Ne4 {[%clk 0:02:50.7]} 12... Nd4 {[%clk
0:02:45.7]} 13. c4 {[%clk 0:02:40.9]} 13... Rb8 {[%clk 0:02:39.6]} 14. Bxd4
{[%clk 0:02:37.3]} 14... cxd4 {[%clk 0:02:37.6]} 15. Nxf6+ {[%clk 0:02:37]}
15... Bxf6 {[%clk 0:02:37]} 16. d3 {[%clk 0:02:37.7]} 16... Bg5 {[%clk
0:02:30.6]} 17. h4 {[%clk 0:02:30.1]} 17... Be3+ {[%clk 0:02:19.1]} 18. Kh2
{[%clk 0:02:29.3]} 18... b5 {[%clk 0:02:16.4]} 19. Be4 {[%clk 0:02:05.4]} 19...
Rb6 {[%clk 0:02:10.1]} 20. Ng1 {[%clk 0:02:01.9]} 20... Rh6 {[%clk 0:02:08.9]}
21. Nh3 {[%clk 0:01:58.6]} 21... Bd7 {[%clk 0:01:51.4]} 22. Qf3 {[%clk
0:01:57.4]} 22... Qa5 {[%clk 0:01:41.2]} 23. Qg2 {[%clk 0:01:43.9]} 23... g5
{[%clk 0:01:28.3]} 24. hxg5 {[%clk 0:01:34.3]} 24... Bxg5 {[%clk 0:01:27.2]} 25.
Rf3 {[%clk 0:01:16]} 25... Kh8 {[%clk 0:01:23.5]} 26. Kg1 {[%clk 0:01:11]} 26...
Be3+ {[%clk 0:01:20.2]} 27. Kf1 {[%clk 0:01:11]} 27... bxc4 {[%clk 0:01:09.4]}
28. dxc4 {[%clk 0:01:09.6]} 28... Rg8 {[%clk 0:01:01.5]} 29. Re1 {[%clk
0:01:06.9]} 29... Rg4 {[%clk 0:00:57.8]} 30. Rfxe3 {[%clk 0:01:01.2]} 30... dxe3
{[%clk 0:00:56.2]} 31. Rxe3 {[%clk 0:01:01.1]} 31... Rd6 {[%clk 0:00:52.6]} 32.
Rd3 {[%clk 0:00:57.4]} 32... Rxd3 {[%clk 0:00:38.8]} 33. Bxd3 {[%clk 0:00:57]}
33... Rd4 {[%clk 0:00:36.3]} 34. f6 {[%clk 0:00:45.5]} 34... Qd8 {[%clk
0:00:23.3]} 35. Ng5 {[%clk 0:00:44.9]} 35... Qxf6+ {[%clk 0:00:22.2]} 36. Ke2
{[%clk 0:00:31.3]} 36... Bg4+ {[%clk 0:00:20.7]} 37. Nf3 {[%clk 0:00:29.6]}
37... Bxf3+ {[%clk 0:00:19.6]} 38. Qxf3 {[%clk 0:00:29.5]} 38... Qxf3+ {[%clk
0:00:19.5]} 0-1

[Event "*** SCC Grand Prix: Titled Tuesday Blitz"]
[Site "Chess.com"]
[Date "2020.08.11"]
[Round "3"]
[White "Iball95"]
[Black "canary2016"]
[Result "1-0"]
[WhiteElo "2711"]
[BlackElo "1866"]
[TimeControl "180+1"]
[EndTime "10:29:06 PDT"]
[Termination "Iball95 won by checkmate"]

1. d4 {[%clk 0:02:19.2]} 1... d5 {[%clk 0:02:59.1]} 2. Bf4 {[%clk 0:02:18.8]}
2... Nf6 {[%clk 0:02:58.5]} 3. e3 {[%clk 0:02:18.8]} 3... e6 {[%clk 0:02:58.6]}
4. Nf3 {[%clk 0:02:18.2]} 4... Bd6 {[%clk 0:02:58.6]} 5. Nbd2 {[%clk 0:02:18.4]}
5... Bxf4 {[%clk 0:02:58.5]} 6. exf4 {[%clk 0:02:19.3]} 6... Qd6 {[%clk
0:02:58.7]} 7. g3 {[%clk 0:02:19.2]} 7... O-O {[%clk 0:02:58.9]} 8. Bd3 {[%clk
0:02:19.4]} 8... c5 {[%clk 0:02:58.9]} 9. c3 {[%clk 0:02:16.8]} 9... b6 {[%clk
0:02:58.5]} 10. Qe2 {[%clk 0:02:16.2]} 10... Nc6 {[%clk 0:02:55.8]} 11. O-O
{[%clk 0:02:16]} 11... Bb7 {[%clk 0:02:54.6]} 12. Rfe1 {[%clk 0:02:13.1]} 12...
Rac8 {[%clk 0:02:53.9]} 13. Rad1 {[%clk 0:02:05.9]} 13... Rc7 {[%clk 0:02:52.7]}
14. a3 {[%clk 0:02:05.5]} 14... Rfc8 {[%clk 0:02:51.3]} 15. h4 {[%clk
0:02:01.5]} 15... cxd4 {[%clk 0:02:50.5]} 16. cxd4 {[%clk 0:02:02.2]} 16... Na5
{[%clk 0:02:48.5]} 17. Ne5 {[%clk 0:02:01.7]} 17... Nd7 {[%clk 0:02:42.5]} 18.
Bxh7+ {[%clk 0:01:50.4]} 18... Kf8 {[%clk 0:02:36]} 19. Bd3 {[%clk 0:01:39.7]}
19... Nxe5 {[%clk 0:02:26.6]} 20. fxe5 {[%clk 0:01:40.6]} 20... Qe7 {[%clk
0:02:24.4]} 21. Qh5 {[%clk 0:01:20.8]} 21... Ke8 {[%clk 0:02:16.5]} 22. Nf3
{[%clk 0:01:19.4]} 22... Nc4 {[%clk 0:02:10.6]} 23. Re2 {[%clk 0:01:15.4]} 23...
Kd7 {[%clk 0:02:03.8]} 24. Ng5 {[%clk 0:01:15.3]} 24... Rf8 {[%clk 0:01:55.9]}
25. Rc2 {[%clk 0:01:12.4]} 25... Kd8 {[%clk 0:01:50.1]} 26. Rdc1 {[%clk
0:01:11.8]} 26... Rc8 {[%clk 0:01:40.4]} 27. Qe2 {[%clk 0:01:07]} 27... Na5
{[%clk 0:01:36.9]} 28. Rxc8+ {[%clk 0:01:05.5]} 28... Bxc8 {[%clk 0:01:36.7]}
29. Ba6 {[%clk 0:01:04]} 29... Bxa6 {[%clk 0:01:33.7]} 30. Qxa6 {[%clk
0:01:04.9]} 30... Nc4 {[%clk 0:01:30.8]} 31. b3 {[%clk 0:01:03.7]} 31... f6
{[%clk 0:01:29.2]} 32. Nh7 {[%clk 0:00:51.4]} 32... Rh8 {[%clk 0:01:28.2]} 33.
bxc4 {[%clk 0:00:51.4]} 33... Rxh7 {[%clk 0:01:27.6]} 34. cxd5 {[%clk
0:00:51.6]} 34... Qd7 {[%clk 0:01:19.4]} 35. dxe6 {[%clk 0:00:48.2]} 35... Qxe6
{[%clk 0:01:18.1]} 36. Qxa7 {[%clk 0:00:48.3]} 36... fxe5 {[%clk 0:01:11.4]} 37.
Qb8+ {[%clk 0:00:48]} 37... Ke7 {[%clk 0:01:08.6]} 38. Rc7+ {[%clk 0:00:46.8]}
38... Kf6 {[%clk 0:01:04.7]} 39. dxe5+ {[%clk 0:00:42.6]} 39... Kg6 {[%clk
0:00:50.4]} 40. Rb7 {[%clk 0:00:42.2]} 40... Qg4 {[%clk 0:00:36]} 41. Rxb6+
{[%clk 0:00:42]} 41... Kf5 {[%clk 0:00:33.4]} 42. Qc8+ {[%clk 0:00:41.9]} 42...
Kxe5 {[%clk 0:00:31.4]} 43. Qxg4 {[%clk 0:00:42.8]} 43... g6 {[%clk 0:00:29.8]}
44. Re6+ {[%clk 0:00:42.1]} 44... Kd5 {[%clk 0:00:29.1]} 45. Qe4+ {[%clk
0:00:43]} 45... Kc5 {[%clk 0:00:28.8]} 46. Rc6+ {[%clk 0:00:43.9]} 46... Kb5
{[%clk 0:00:28.4]} 47. Qc4+ {[%clk 0:00:44.8]} 47... Ka5 {[%clk 0:00:28.1]} 48.
Ra6# {[%clk 0:00:45.2]} 1-0

[Event "*** SCC Grand Prix: Titled Tuesday Blitz"]
[Site "Chess.com"]
[Date "2020.08.11"]
[Round "3"]
[White "lider34"]
[Black "AlanZhang"]
[Result "1-0"]
[WhiteElo "2389"]
[BlackElo "2180"]
[TimeControl "180+1"]
[EndTime "10:29:07 PDT"]
[Termination "lider34 won by checkmate"]

1. e4 {[%clk 0:03:00.9]} 1... e5 {[%clk 0:02:57.5]} 2. Nc3 {[%clk 0:02:59.4]}
2... Nc6 {[%clk 0:02:57.4]} 3. g3 {[%clk 0:02:59.1]} 3... Bc5 {[%clk 0:02:50]}
4. Bg2 {[%clk 0:02:58.7]} 4... a6 {[%clk 0:02:49.9]} 5. Nge2 {[%clk 0:02:58.3]}
5... d6 {[%clk 0:02:50.1]} 6. O-O {[%clk 0:02:57.9]} 6... Nge7 {[%clk
0:02:50.6]} 7. d3 {[%clk 0:02:57.6]} 7... O-O {[%clk 0:02:49.9]} 8. h3 {[%clk
0:02:57.3]} 8... f5 {[%clk 0:02:48.2]} 9. Kh2 {[%clk 0:02:50.8]} 9... Rb8 {[%clk
0:02:31.9]} 10. f4 {[%clk 0:02:46.1]} 10... Ba7 {[%clk 0:02:09.4]} 11. a4 {[%clk
0:02:37.8]} 11... fxe4 {[%clk 0:01:49.3]} 12. dxe4 {[%clk 0:02:35.6]} 12... Be6
{[%clk 0:01:40]} 13. f5 {[%clk 0:02:31.1]} 13... Bf7 {[%clk 0:01:36.4]} 14. f6
{[%clk 0:02:23.5]} 14... gxf6 {[%clk 0:01:29.2]} 15. Bh6 {[%clk 0:02:17.9]}
15... Re8 {[%clk 0:01:28.8]} 16. Rxf6 {[%clk 0:02:17.3]} 16... Ng6 {[%clk
0:01:21.8]} 17. Bg5 {[%clk 0:02:08]} 17... Qd7 {[%clk 0:01:15.4]} 18. h4 {[%clk
0:02:05.8]} 18... Nd4 {[%clk 0:01:11.9]} 19. Nxd4 {[%clk 0:01:52.7]} 19... Bxd4
{[%clk 0:01:06.7]} 20. Bh3 {[%clk 0:01:41.2]} 20... Be6 {[%clk 0:01:05]} 21.
Bxe6+ {[%clk 0:01:20.8]} 21... Rxe6 {[%clk 0:01:05.9]} 22. Qg4 {[%clk
0:01:18.8]} 22... Re7 {[%clk 0:00:46.3]} 23. Qf3 {[%clk 0:01:04.5]} 23... Bxc3
{[%clk 0:00:17.7]} 24. bxc3 {[%clk 0:01:02.6]} 24... Rf7 {[%clk 0:00:17.9]} 25.
h5 {[%clk 0:00:57.8]} 25... Rxf6 {[%clk 0:00:11.7]} 26. Bxf6 {[%clk 0:00:56.9]}
26... Nf8 {[%clk 0:00:09.4]} 27. Rf1 {[%clk 0:00:47.8]} 27... Re8 {[%clk
0:00:08]} 28. Qe3 {[%clk 0:00:39.5]} 28... Ne6 {[%clk 0:00:06.2]} 29. Qh6 {[%clk
0:00:37.2]} 29... Rf8 {[%clk 0:00:04.8]} 30. Rf5 {[%clk 0:00:35.8]} 30... Rf7
{[%clk 0:00:04.7]} 31. g4 {[%clk 0:00:34.3]} 31... c6 {[%clk 0:00:03.5]} 32. g5
{[%clk 0:00:33.5]} 32... b5 {[%clk 0:00:02.9]} 33. g6 {[%clk 0:00:31.9]} 33...
hxg6 {[%clk 0:00:02.9]} 34. Qh8# {[%clk 0:00:31.3]} 1-0

[Event "*** SCC Grand Prix: Titled Tuesday Blitz"]
[Site "Chess.com"]
[Date "2020.08.11"]
[Round "3"]
[White "Alexey_Spirin"]
[Black "Chessalary"]
[Result "0-1"]
[WhiteElo "2028"]
[BlackElo "2291"]
[TimeControl "180+1"]
[EndTime "10:29:07 PDT"]
[Termination "Chessalary won by resignation"]

1. e4 {[%clk 0:03:00.5]} 1... c5 {[%clk 0:02:59.8]} 2. Nf3 {[%clk 0:02:51]} 2...
d6 {[%clk 0:02:58.4]} 3. Bb5+ {[%clk 0:02:48.1]} 3... Bd7 {[%clk 0:02:54.8]} 4.
Bxd7+ {[%clk 0:02:47.9]} 4... Qxd7 {[%clk 0:02:55.7]} 5. O-O {[%clk 0:02:47.8]}
5... Nc6 {[%clk 0:02:50.2]} 6. c3 {[%clk 0:02:48.1]} 6... g6 {[%clk 0:02:45.9]}
7. d4 {[%clk 0:02:48.1]} 7... cxd4 {[%clk 0:02:46.8]} 8. cxd4 {[%clk 0:02:47.1]}
8... Bg7 {[%clk 0:02:47.7]} 9. Nc3 {[%clk 0:02:47.2]} 9... Nf6 {[%clk
0:02:43.4]} 10. Qe2 {[%clk 0:02:46.6]} 10... O-O {[%clk 0:02:39.7]} 11. Rd1
{[%clk 0:02:46.8]} 11... Nh5 {[%clk 0:02:17.3]} 12. h3 {[%clk 0:02:14.9]} 12...
Qc8 {[%clk 0:02:05.9]} 13. Bg5 {[%clk 0:01:48.3]} 13... Re8 {[%clk 0:01:38.4]}
14. Rac1 {[%clk 0:01:26.3]} 14... h6 {[%clk 0:01:16]} 15. Be3 {[%clk 0:00:53.5]}
15... Qd7 {[%clk 0:01:02.8]} 16. g4 {[%clk 0:00:49.6]} 16... Nf6 {[%clk
0:01:02.5]} 17. e5 {[%clk 0:00:49.9]} 17... Nxg4 {[%clk 0:01:02.4]} 18. hxg4
{[%clk 0:00:50.3]} 18... Qxg4+ {[%clk 0:01:03.3]} 19. Kf1 {[%clk 0:00:50.8]}
19... dxe5 {[%clk 0:00:54.7]} 20. dxe5 {[%clk 0:00:44.4]} 20... Nxe5 {[%clk
0:00:36.3]} 21. Nxe5 {[%clk 0:00:39]} 21... Qh3+ {[%clk 0:00:35.7]} 22. Ke1
{[%clk 0:00:38.2]} 22... Bxe5 {[%clk 0:00:36.6]} 23. Rd5 {[%clk 0:00:27.2]}
23... Bxc3+ {[%clk 0:00:33]} 24. Rxc3 {[%clk 0:00:23.9]} 24... Qh1+ {[%clk
0:00:31.3]} 25. Qf1 {[%clk 0:00:20.8]} 25... Qxd5 {[%clk 0:00:31.4]} 26. Qh3
{[%clk 0:00:17.7]} 26... Rad8 {[%clk 0:00:26.1]} 27. Rc1 {[%clk 0:00:14.5]}
27... Qh5 {[%clk 0:00:21.7]} 0-1

[Event "*** SCC Grand Prix: Titled Tuesday Blitz"]
[Site "Chess.com"]
[Date "2020.08.11"]
[Round "3"]
[White "Sashadav97"]
[Black "Alindsay211"]
[Result "1-0"]
[WhiteElo "2582"]
[BlackElo "2355"]
[TimeControl "180+1"]
[EndTime "10:29:08 PDT"]
[Termination "Sashadav97 won on time"]

1. d4 {[%clk 0:03:00.1]} 1... Nf6 {[%clk 0:02:58.6]} 2. c4 {[%clk 0:02:59.5]}
2... g6 {[%clk 0:02:56.8]} 3. Nc3 {[%clk 0:02:59.4]} 3... d5 {[%clk 0:02:55.8]}
4. cxd5 {[%clk 0:03:00.3]} 4... Nxd5 {[%clk 0:02:55.6]} 5. e4 {[%clk 0:03:00.8]}
5... Nxc3 {[%clk 0:02:55.5]} 6. bxc3 {[%clk 0:03:01.7]} 6... Bg7 {[%clk
0:02:55.5]} 7. Nf3 {[%clk 0:03:02.1]} 7... c5 {[%clk 0:02:51.9]} 8. Bb5+ {[%clk
0:03:02.1]} 8... Bd7 {[%clk 0:02:46.9]} 9. Be2 {[%clk 0:03:01.3]} 9... O-O
{[%clk 0:02:45.8]} 10. O-O {[%clk 0:03:00.5]} 10... Nc6 {[%clk 0:02:43.4]} 11.
d5 {[%clk 0:02:56]} 11... Ne5 {[%clk 0:02:42.5]} 12. Nxe5 {[%clk 0:02:55.9]}
12... Bxe5 {[%clk 0:02:43.4]} 13. Be3 {[%clk 0:02:56.1]} 13... Qc7 {[%clk
0:02:10.3]} 14. h3 {[%clk 0:02:49.7]} 14... Rad8 {[%clk 0:02:06.4]} 15. Rc1
{[%clk 0:02:48.2]} 15... b6 {[%clk 0:01:51.2]} 16. c4 {[%clk 0:02:42.4]} 16...
Bc6 {[%clk 0:01:42.7]} 17. f4 {[%clk 0:02:37.2]} 17... Bg7 {[%clk 0:01:39.4]}
18. Qb3 {[%clk 0:02:28.9]} 18... Ba8 {[%clk 0:01:37]} 19. Rcd1 {[%clk
0:02:28.7]} 19... e6 {[%clk 0:01:34]} 20. Bf3 {[%clk 0:02:22.9]} 20... Kh8
{[%clk 0:00:52.9]} 21. Kh1 {[%clk 0:01:56.8]} 21... exd5 {[%clk 0:00:52]} 22.
cxd5 {[%clk 0:01:55.3]} 22... c4 {[%clk 0:00:51.3]} 23. Qc2 {[%clk 0:01:55.4]}
23... c3 {[%clk 0:00:45.2]} 24. e5 {[%clk 0:01:54.7]} 24... f6 {[%clk
0:00:32.3]} 25. d6 {[%clk 0:01:48.6]} 25... Qd7 {[%clk 0:00:25]} 26. Bxa8 {[%clk
0:01:44.9]} 26... Rxa8 {[%clk 0:00:22.2]} 27. Qxc3 {[%clk 0:01:44.4]} 27... fxe5
{[%clk 0:00:21.4]} 28. fxe5 {[%clk 0:01:44.4]} 28... Rxf1+ {[%clk 0:00:19]} 29.
Rxf1 {[%clk 0:01:45.3]} 29... Re8 {[%clk 0:00:19.2]} 30. Bd4 {[%clk 0:01:44.2]}
30... Qe6 {[%clk 0:00:16.7]} 31. Rf4 {[%clk 0:01:29.7]} 31... h5 {[%clk
0:00:15.7]} 32. Qd3 {[%clk 0:01:18]} 32... Rc8 {[%clk 0:00:14.2]} 33. Rf1 {[%clk
0:01:10.7]} 33... Re8 {[%clk 0:00:06.5]} 34. Ba1 {[%clk 0:01:05]} 34... Rd8
{[%clk 0:00:05.5]} 35. Qe3 {[%clk 0:01:02.6]} 35... Rxd6 {[%clk 0:00:03.6]} 36.
exd6 {[%clk 0:00:54.8]} 36... Qxe3 {[%clk 0:00:03.2]} 37. d7 {[%clk 0:00:54.9]}
37... Qd3 {[%clk 0:00:01]} 38. Rf8+ {[%clk 0:00:53.7]} 1-0